bitfinex/quotes_BTCUSD_20241001
["timestamp","ask_amount","ask_price","bid_price","bid_amount"]
[1727749084734,0.20622364,63379.0,63378.0,0.4252408]
[1727749085197,0.20622364,63379.0,63378.0,0.4152408]
[1727749085431,0.20422364,63379.0,63378.0,0.4142408]
[1727749085652,0.20522364,63379.0,63378.0,0.4242408]
[1727749085876,0.20622364,63379.0,63378.0,0.4342408]
[1727749086877,0.20522364,63379.0,63378.0,0.4242408]
[1727749087367,0.20622364,63379.0,63378.0,0.4262408]
[1727749090129,0.20622364,63379.0,63378.0,0.45237914]
[1727749090130,0.10942364,63379.0,63378.0,0.45237914]
[1727749090372,0.10942364,63379.0,63378.0,0.48399914]
[1727749090373,0.02672364,63379.0,63378.0,0.48399914]
[1727749091064,0.02572364,63379.0,63378.0,0.48199914]
[1727749091521,0.02572364,63379.0,63378.0,0.50425186]
[1727749091790,0.02572364,63379.0,63378.0,0.51325181]
[1727749092006,6.4e-07,63379.0,63378.0,1.02752999]
[1727749092235,6.4e-07,63379.0,63378.0,0.58988376]
[1727749092456,6.4e-07,63379.0,63378.0,0.79675339]
[1727749092690,6.4e-07,63379.0,63378.0,0.566294]
[1727749092920,0.23677793,63391.0,63390.0,0.312373]
[1727749093159,0.23677793,63391.0,63390.0,0.4688308]
[1727749093385,0.32797793,63391.0,63390.0,0.4688308]
[1727749093611,0.0912,63391.0,63390.0,0.4688308]
[1727749093833,0.1699,63391.0,63390.0,0.4688308]
[1727749094798,0.1699,63391.0,63390.0,0.4458308]
[1727749095023,0.1699,63391.0,63390.0,0.4802988]
[1727749095496,0.1699,63391.0,63390.0,0.4682988]
[1727749095714,0.1699,63391.0,63390.0,0.4802988]
[1727749100243,0.1699,63391.0,63390.0,0.5032988]
[1727749100465,0.19461822,63391.0,63390.0,0.5032988]
[1727749110637,0.1699,63391.0,63390.0,0.5032988]
[1727749111762,0.0787,63391.0,63390.0,0.5032988]
[1727749119733,0.080344,63391.0,63390.0,0.5032988]
[1727749119948,0.001644,63391.0,63390.0,0.5032988]
[1727749121059,0.001644,63391.0,63390.0,0.52005748]
[1727749121505,0.001644,63391.0,63390.0,0.55570589]
[1727749124037,0.001644,63391.0,63390.0,0.74315859]
[1727749124720,0.001644,63391.0,63390.0,0.80545859]
[1727749125035,0.001644,63391.0,63390.0,0.82958111]
[1727749125247,0.001644,63391.0,63390.0,0.84458148]
[1727749125473,0.001644,63391.0,63390.0,0.82538135]
[1727749125937,0.001644,63391.0,63390.0,0.81138135]
[1727749126168,0.001644,63391.0,63390.0,0.55076699]
[1727749126598,0.001644,63391.0,63390.0,0.56476699]
[1727749126813,0.001644,63391.0,63390.0,0.55076699]
[1727749127476,0.001644,63391.0,63390.0,0.56476699]
[1727749128360,0.001644,63391.0,63390.0,0.51243751]
[1727749128842,0.001644,63391.0,63390.0,0.56434808]
[1727749129726,0.001644,63391.0,63390.0,0.57834808]
[1727749131369,0.001644,63391.0,63390.0,0.62554821]
[1727749133272,0.001644,63391.0,63390.0,0.57834808]
[1727749135490,0.001644,63391.0,63390.0,0.57823343]
[1727749135932,0.001644,63391.0,63390.0,0.52643751]
[1727749136148,0.001644,63391.0,63390.0,0.54298957]
[1727749137251,0.001644,63391.0,63390.0,0.59028613]
[1727749138380,0.001644,63391.0,63390.0,0.59028444]
[1727749139021,0.001644,63391.0,63390.0,0.59028117]
[1727749139240,0.001644,63391.0,63390.0,0.5429863]
[1727749139459,0.001644,63391.0,63390.0,0.61393115]
[1727749139665,0.001644,63391.0,63390.0,0.65784987]
[1727749140362,0.001644,63391.0,63390.0,0.65784297]
[1727749141231,0.001644,63391.0,63390.0,0.5429863]
[1727749141450,0.001644,63391.0,63390.0,0.58690502]
[1727749141880,0.001644,63391.0,63390.0,0.6341988]
[1727749142100,0.001644,63391.0,63390.0,0.6341968]
[1727749142545,0.001644,63391.0,63390.0,0.65784297]
[1727749142976,0.001644,63391.0,63390.0,0.84057688]
[1727749143197,0.001644,63391.0,63390.0,0.65784297]
[1727749143411,0.001644,63391.0,63390.0,0.58690502]
[1727749144137,0.176244,63391.0,63390.0,0.54576631]
[1727749144359,0.176244,63391.0,63390.0,0.51180587]
[1727749145031,0.176244,63391.0,63390.0,0.48380587]
[1727749145252,0.176244,63391.0,63390.0,0.49525708]
[1727749145479,0.176244,63391.0,63390.0,0.48125708]
[1727749145906,0.176244,63391.0,63390.0,0.49525708]
[1727749146584,0.176244,63391.0,63390.0,0.48125708]
[1727749146808,0.176244,63391.0,63390.0,0.49525708]
[1727749147025,0.176244,63391.0,63390.0,0.48125708]
[1727749147245,0.176244,63391.0,63390.0,0.46725708]
[1727749147463,0.176244,63391.0,63390.0,0.48025708]
[1727749147677,0.177244,63391.0,63390.0,0.49325708]
[1727749149223,0.177244,63391.0,63390.0,0.46163708]
[1727749162861,0.177244,63391.0,63390.0,0.04742628]
[1727749162862,0.460691,63391.0,63390.0,0.04742628]
[1727749163298,0.460691,63391.0,63390.0,0.03595828]
[1727749163302,0.460691,63391.0,63390.0,0.026]
[1727749163531,0.331171,63383.0,63379.0,0.000822]
[1727749163761,0.1734,63382.0,63380.0,0.1564578]
[1727749164035,0.1734,63382.0,63380.0,0.18152715]
[1727749164036,0.0821,63381.0,63380.0,0.18152715]
[1727749164257,0.0821,63381.0,63380.0,0.33930515]
[1727749164918,0.0821,63381.0,63380.0,0.35330515]
[1727749165172,0.0821,63381.0,63380.0,0.43930515]
[1727749165592,0.0821,63381.0,63380.0,0.475567]
[1727749166843,0.0831,63381.0,63380.0,0.484567]
[1727749167712,0.0831,63381.0,63380.0,0.48453538]
[1727749168382,0.0831,63381.0,63380.0,0.53915538]
[1727749170838,0.0831,63381.0,63380.0,0.53912013]
[1727749173959,0.0831,63381.0,63380.0,0.51692515]
[1727749174175,0.0831,63381.0,63380.0,0.53907119]
[1727749174384,0.0831,63381.0,63380.0,0.51692515]
[1727749174620,0.0831,63381.0,63380.0,0.53907396]
[1727749176189,0.1794,63381.0,63380.0,0.51607396]
[1727749176406,0.1794,63381.0,63380.0,0.33614715]
[1727749177295,0.1794,63381.0,63380.0,0.30452715]
[1727749177528,0.1814,63381.0,63380.0,0.30452715]
[1727749178416,0.1794,63381.0,63380.0,0.30452715]
[1727749178906,0.1794,63381.0,63380.0,0.29134915]
[1727749179541,0.1794,63381.0,63380.0,0.29634915]
[1727749179977,0.1784,63381.0,63380.0,0.28734915]
[1727749180416,0.1794,63381.0,63380.0,0.29534915]
[1727749180864,0.337175,63381.0,63380.0,0.29534915]
[1727749181086,0.1794,63381.0,63380.0,0.29534915]
[1727749181312,0.1844,63381.0,63380.0,0.03389135]
[1727749181538,0.341175,63381.0,63380.0,0.02589135]
[1727749181759,0.341175,63381.0,63380.0,0.003822]
[1727749181983,0.1834,63381.0,63380.0,0.003822]
[1727749182193,0.341175,63381.0,63380.0,0.007822]
[1727749182414,0.341175,63381.0,63380.0,0.02467971]
[1727749182896,0.343175,63381.0,63380.0,0.02467971]
[1727749183348,0.1854,63381.0,63380.0,0.02767971]
[1727749183562,0.343175,63381.0,63380.0,0.02767971]
[1727749184716,0.1784,63381.0,63380.0,0.18413751]
[1727749184948,0.1784,63381.0,63380.0,0.46491551]
[1727749185640,0.1784,63381.0,63380.0,0.48395004]
[1727749185865,0.1784,63381.0,63380.0,0.48695004]
[1727749186067,0.1784,63381.0,63380.0,0.48395004]
[1727749186508,0.1794,63381.0,63380.0,0.44691551]
[1727749186724,0.1794,63381.0,63380.0,0.44391551]
[1727749187136,0.1804,63381.0,63380.0,0.45291551]
[1727749187554,0.1794,63381.0,63380.0,0.44391551]
[1727749188185,0.1824,63381.0,63380.0,0.45291551]
[1727749188394,0.1804,63381.0,63380.0,0.44391551]
[1727749188820,0.1814,63381.0,63380.0,0.45091551]
[1727749189069,0.346175,63381.0,63380.0,0.03667971]
[1727749189503,0.346175,63381.0,63380.0,0.015822]
[1727749189708,0.346175,63381.0,63380.0,0.03672281]
[1727749191204,0.344175,63381.0,63380.0,0.03672281]
[1727749192120,0.1864,63381.0,63380.0,0.03672281]
[1727749192335,0.344175,63381.0,63380.0,0.03672281]
[1727749194079,0.346175,63381.0,63380.0,0.03672281]
[1727749194500,0.344175,63381.0,63380.0,0.03672281]
[1727749194932,0.346175,63381.0,63380.0,0.03672281]
[1727749195145,0.344175,63381.0,63380.0,0.03672281]
[1727749198587,0.344175,63381.0,63380.0,0.015822]
[1727749199477,0.344175,63381.0,63380.0,0.03674076]
[1727749199696,0.1864,63381.0,63380.0,0.03674076]
[1727749199913,0.344175,63381.0,63380.0,0.03674076]
[1727749202354,0.346175,63381.0,63380.0,0.03674076]
[1727749202724,0.1864,63381.0,63380.0,0.03674076]
[1727749203087,0.344175,63381.0,63380.0,0.03674076]
[1727749203753,0.4649399,63381.0,63380.0,0.03674076]
[1727749206299,0.3071649,63381.0,63380.0,0.03674076]
[1727749206730,0.4649399,63381.0,63380.0,0.03674076]
[1727749207378,0.3071649,63381.0,63380.0,0.19451876]
[1727749207617,0.3071649,63381.0,63380.0,0.03674076]
[1727749208797,0.4649399,63381.0,63380.0,0.03674076]
[1727749209459,0.3071649,63381.0,63380.0,0.03674076]
[1727749209912,0.4649399,63381.0,63380.0,0.015822]
[1727749210103,0.4649399,63381.0,63380.0,0.03675295]
[1727749210649,0.4649399,63381.0,63380.0,0.19321075]
[1727749210650,0.0851,63381.0,63380.0,0.19321075]
[1727749210910,0.003,63381.0,63380.0,0.50560875]
[1727749211878,0.02672127,63381.0,63380.0,0.49760875]
[1727749212098,0.02572127,63381.0,63380.0,0.50160875]
[1727749212532,0.02672127,63381.0,63380.0,0.51560875]
[1727749212745,0.02572127,63381.0,63380.0,0.50460875]
[1727749212962,0.02672127,63381.0,63380.0,0.51560875]
[1727749213477,0.02472127,63381.0,63380.0,0.49060875]
[1727749213695,0.02572127,63381.0,63380.0,0.50160875]
[1727749215057,0.02572127,63381.0,63380.0,0.51360875]
[1727749215529,0.02572127,63381.0,63380.0,0.52760875]
[1727749215776,0.02472127,63381.0,63380.0,0.51660875]
[1727749216037,0.02472127,63381.0,63380.0,0.52860875]
[1727749216482,0.02472127,63381.0,63380.0,0.51660875]
[1727749216698,0.02472127,63381.0,63380.0,0.52960875]
[1727749221001,0.0796,63388.0,63387.0,0.157761]
[1727749221183,0.0796,63388.0,63387.0,0.4142188]
[1727749221476,0.0796,63388.0,63387.0,0.43507026]
[1727749222598,0.10432036,63388.0,63387.0,0.44207026]
[1727749222827,0.10532036,63388.0,63387.0,0.44907026]
[1727749232007,0.10532036,63388.0,63387.0,0.43975793]
[1727749241413,0.02572036,63388.0,63387.0,0.4792917]
[1727749241625,0.02572036,63388.0,63387.0,0.5109117]
[1727749242265,0.02572036,63388.0,63387.0,0.5039117]
[1727749242266,0.02472036,63388.0,63387.0,0.5039117]
[1727749242536,0.02472036,63388.0,63387.0,0.48737793]
[1727749242738,0.02572036,63388.0,63387.0,0.51587446]
[1727749243077,0.02472036,63388.0,63387.0,0.50387446]
[1727749243723,0.10642036,63388.0,63387.0,0.44225446]
[1727749243947,0.10642036,63388.0,63387.0,0.42575793]
[1727749244194,0.10642036,63388.0,63387.0,0.43775793]
[1727749244416,0.10642036,63388.0,63387.0,0.43875793]
[1727749244896,0.10642036,63388.0,63387.0,0.42575793]
[1727749245103,0.10642036,63388.0,63387.0,0.43675793]
[1727749245750,0.10642036,63388.0,63387.0,0.44775793]
[1727749245961,0.10642036,63388.0,63387.0,0.43675793]
[1727749246170,0.10642036,63388.0,63387.0,0.44575793]
[1727749246922,0.10642036,63388.0,63387.0,0.43475793]
[1727749247149,0.10642036,63388.0,63387.0,0.44375793]
[1727749251170,0.10642036,63388.0,63387.0,0.44457993]
[1727749267807,0.27604002,63388.0,63387.0,0.03036113]
[1727749268062,0.44596827,63388.0,63387.0,0.018822]
[1727749268303,0.37754002,63388.0,63387.0,0.018822]
[1727749268550,0.37754002,63388.0,63380.0,0.000822]
[1727749268551,0.005,63381.0,63380.0,0.000822]
[1727749268797,0.54518224,63381.0,63380.0,0.000822]
[1727749269065,0.47480156,63381.0,63380.0,0.01235515]
[1727749269328,0.49952695,63381.0,63380.0,0.000822]
[1727749270085,0.56987034,63381.0,63380.0,0.000822]
[1727749270325,0.54640285,63381.0,63380.0,0.000822]
[1727749271065,0.54740285,63381.0,63380.0,0.000822]
[1727749271332,0.54840285,63381.0,63380.0,0.000822]
[1727749271560,0.50152695,63381.0,63380.0,0.000822]
[1727749288508,0.50152695,63381.0,63380.0,0.01241204]
[1727749288706,0.50152695,63381.0,63380.0,0.000822]
[1727749292339,0.65797373,63381.0,63380.0,0.000822]
[1727749292554,0.70474148,63381.0,63380.0,0.000822]
[1727749292829,0.70474148,63381.0,63367.0,0.000822]
[1727749292830,0.46503456,63368.0,63367.0,0.000822]
[1727749293503,0.48976625,63368.0,63367.0,0.000822]
[1727749294648,0.49376625,63368.0,63367.0,0.000822]
[1727749295072,0.48976625,63368.0,63367.0,0.000822]
[1727749295460,0.49176625,63368.0,63367.0,0.000822]
[1727749295692,0.48976625,63368.0,63367.0,0.000822]
[1727749296118,0.49176625,63368.0,63367.0,0.000822]
[1727749297208,0.49576625,63368.0,63367.0,0.000822]
[1727749297618,0.49776625,63368.0,63367.0,0.000822]
[1727749309194,0.37700135,63368.0,63367.0,0.000822]
[1727749309419,0.49776625,63368.0,63367.0,0.000822]
[1727749309848,0.45856625,63368.0,63367.0,0.000822]
[1727749310739,0.33780135,63368.0,63367.0,0.000822]
[1727749310993,0.11373169,63368.0,63367.0,0.000822]
[1727749311213,0.03773169,63368.0,63367.0,0.16894778]
[1727749311429,0.03959335,63368.0,63367.0,0.000822]
[1727749311642,0.11469335,63368.0,63367.0,0.158632]
[1727749311865,0.11469335,63368.0,63367.0,0.17029998]
[1727749312074,0.10869335,63368.0,63367.0,0.17029998]
[1727749312315,0.11069335,63368.0,63367.0,0.17029998]
[1727749312520,0.10869335,63368.0,63367.0,0.17029998]
[1727749312950,0.11069335,63368.0,63367.0,0.17029998]
[1727749313205,0.11069335,63368.0,63367.0,0.01248998]
[1727749313437,0.10869335,63368.0,63367.0,0.01248998]
[1727749314383,0.11069335,63368.0,63367.0,0.17029998]
[1727749316245,0.10869335,63368.0,63367.0,0.17029998]
[1727749316480,0.10869335,63368.0,63367.0,0.17129998]
[1727749317160,0.10669335,63368.0,63367.0,0.17129998]
[1727749317574,0.10669335,63368.0,63367.0,0.17229998]
[1727749320032,0.06749335,63368.0,63367.0,0.17229998]
[1727749323428,0.09222163,63368.0,63367.0,0.17229998]
[1727749323628,0.08535997,63368.0,63367.0,0.17229998]
[1727749323834,0.09222163,63368.0,63367.0,0.17229998]
[1727749324253,0.02472828,63368.0,63367.0,0.32875778]
[1727749325534,0.02472828,63368.0,63367.0,0.52375778]
[1727749325749,0.001644,63381.0,63377.0,0.157785]
[1727749325957,0.00850566,63381.0,63377.0,0.157785]
[1727749326169,0.00850566,63381.0,63377.0,0.16941305]
[1727749326714,0.00686166,63379.0,63377.0,0.16941305]
[1727749326925,0.00850566,63381.0,63377.0,0.16941305]
[1727749327336,0.001644,63381.0,63377.0,0.16941305]
[1727749328159,0.001644,63381.0,63377.0,0.17441305]
[1727749328755,0.02472482,63379.0,63377.0,0.17441305]
[1727749328953,0.02472482,63379.0,63377.0,0.17941305]
[1727749329655,0.02472482,63379.0,63377.0,0.33587085]
[1727749329884,0.02472482,63379.0,63377.0,0.65483575]
[1727749330101,0.02472482,63379.0,63377.0,0.70945575]
[1727749330309,0.02472482,63379.0,63377.0,0.74480286]
[1727749330493,0.02472482,63379.0,63377.0,0.70945575]
[1727749330959,0.02472482,63379.0,63377.0,0.73480286]
[1727749331428,0.002644,63378.0,63377.0,0.71245575]
[1727749331650,0.001644,63378.0,63377.0,0.73480286]
[1727749331886,0.002644,63378.0,63377.0,0.74880286]
[1727749332366,0.002644,63378.0,63377.0,0.50749085]
[1727749332367,0.003644,63378.0,63377.0,0.50749085]
[1727749332603,0.003644,63378.0,63377.0,0.46687085]
[1727749332604,0.1254089,63378.0,63377.0,0.46687085]
[1727749332817,0.1234089,63378.0,63377.0,0.43887085]
[1727749333036,0.002644,63378.0,63377.0,0.43887085]
[1727749333250,0.001644,63378.0,63377.0,0.42587085]
[1727749333680,0.001644,63378.0,63377.0,0.43987085]
[1727749334146,0.001644,63378.0,63377.0,0.42587085]
[1727749335495,0.001644,63378.0,63377.0,0.43987085]
[1727749335702,0.002644,63378.0,63377.0,0.45287085]
[1727749335911,0.002644,63378.0,63377.0,0.43887085]
[1727749336118,0.001644,63378.0,63377.0,0.43387085]
[1727749336533,0.002644,63378.0,63377.0,0.44287085]
[1727749337593,0.002644,63378.0,63377.0,0.46587085]
[1727749351035,0.002644,63378.0,63377.0,0.44287085]
[1727749352466,0.002644,63378.0,63377.0,0.02862805]
[1727749352467,0.345227,63378.0,63377.0,0.02862805]
[1727749352722,0.34708866,63378.0,63377.0,0.02862805]
[1727749352981,0.34708866,63378.0,63377.0,0.017]
[1727749353490,0.34608866,63378.0,63377.0,0.008]
[1727749353735,0.5302034,63378.0,63377.0,0.008]
[1727749353964,0.5302034,63378.0,63377.0,0.005]
[1727749354398,0.5362034,63378.0,63377.0,0.005]
[1727749355682,0.16466166,63371.0,63370.0,0.00135]
[1727749355880,0.4318764,63371.0,63370.0,0.00135]
[1727749356081,0.4318764,63371.0,63370.0,0.01293541]
[1727749356259,0.4318764,63371.0,63370.0,0.00135]
[1727749356688,0.4318764,63371.0,63370.0,0.00335]
[1727749357411,0.4318764,63371.0,63370.0,0.00435]
[1727749357682,0.45660501,63371.0,63370.0,0.00435]
[1727749358503,0.4318764,63371.0,63370.0,0.00435]
[1727749358963,0.5288764,63371.0,63370.0,0.00435]
[1727749359370,0.5288764,63371.0,63370.0,0.00235]
[1727749359540,0.5308764,63371.0,63370.0,0.00235]
[1727749359731,0.3730764,63371.0,63370.0,0.00235]
[1727749359936,0.5308764,63371.0,63370.0,0.01396796]
[1727749360170,0.5288764,63371.0,63370.0,0.01396796]
[1727749360317,0.5298764,63371.0,63370.0,0.00235]
[1727749360789,0.5288764,63371.0,63370.0,0.01400051]
[1727749361651,0.55360466,63371.0,63370.0,0.01400051]
[1727749362136,0.55460466,63371.0,63370.0,0.01300051]
[1727749362344,0.55660466,63371.0,63370.0,0.01300051]
[1727749362557,0.55460466,63371.0,63370.0,0.01300051]
[1727749363001,0.55660466,63371.0,63370.0,0.01300051]
[1727749364767,0.21282826,63371.0,63370.0,0.01300051]
[1727749364979,0.37248992,63371.0,63370.0,0.01300051]
[1727749365186,0.37248992,63371.0,63370.0,0.00135]
[1727749373682,0.49331572,63371.0,63370.0,0.00135]
[1727749374394,0.49331572,63371.0,63370.0,0.01300116]
[1727749374632,0.49331572,63371.0,63370.0,0.00135]
[1727749383754,0.49495972,63371.0,63370.0,0.00135]
[1727749385786,0.49495972,63371.0,63370.0,0.01300044]
[1727749386035,0.49495972,63371.0,63370.0,0.00135]
[1727749388050,0.49495972,63371.0,63370.0,0.01300044]
[1727749388324,0.49495972,63371.0,63370.0,0.00135]
[1727749388553,0.49495972,63371.0,63370.0,0.01300044]
[1727749390317,0.49495972,63371.0,63370.0,0.00135]
[1727749390563,0.49495972,63371.0,63370.0,0.01300044]
[1727749391055,0.49495972,63371.0,63370.0,0.00135]
[1727749391316,0.21633392,63371.0,63370.0,0.00135]
[1727749391569,0.49495972,63371.0,63370.0,0.00135]
[1727749392378,0.02937226,63371.0,63370.0,0.42726124]
[1727749392616,0.004644,63371.0,63370.0,0.62454323]
[1727749393446,0.002644,63371.0,63370.0,0.62654323]
[1727749393629,0.004644,63371.0,63370.0,0.62968157]
[1727749393881,0.001644,63378.0,63377.0,0.382185]
[1727749394124,0.001644,63378.0,63377.0,0.70792479]
[1727749394395,0.001644,63378.0,63377.0,0.71953694]
[1727749395188,0.001644,63378.0,63377.0,0.59868857]
[1727749395458,0.001644,63378.0,63377.0,0.61268857]
[1727749395713,0.002644,63378.0,63377.0,0.62668857]
[1727749395965,0.001644,63378.0,63377.0,0.61268857]
[1727749396201,0.001644,63378.0,63377.0,0.59868857]
[1727749396439,0.002644,63378.0,63377.0,0.60988495]
[1727749396667,0.002644,63378.0,63377.0,0.59588495]
[1727749397668,0.001644,63378.0,63377.0,0.58188495]
[1727749397913,0.001644,63378.0,63377.0,0.59588495]
[1727749398164,0.002644,63378.0,63377.0,0.59588495]
[1727749398678,0.001644,63378.0,63377.0,0.59588495]
[1727749398953,0.002644,63378.0,63377.0,0.61086662]
[1727749399214,0.002644,63378.0,63377.0,1.13023438]
[1727749399454,0.002644,63378.0,63377.0,1.11343076]
[1727749399700,0.001644,63378.0,63377.0,1.11623438]
[1727749400178,0.001644,63378.0,63377.0,1.09943076]
[1727749401583,0.002644,63378.0,63377.0,1.16250989]
[1727749401793,0.002644,63378.0,63377.0,1.17650989]
[1727749402007,0.002644,63378.0,63377.0,1.16250989]
[1727749402478,0.002644,63378.0,63377.0,1.17650989]
[1727749405489,0.001644,63381.0,63380.0,0.33514634]
[1727749405717,0.001644,63381.0,63380.0,0.49160414]
[1727749405949,0.001644,63381.0,63380.0,0.64707677]
[1727749406157,0.001644,63381.0,63380.0,0.84857877]
[1727749406408,0.001644,63381.0,63380.0,0.94297877]
[1727749407962,0.001644,63381.0,63380.0,0.95697877]
[1727749409111,0.001644,63381.0,63380.0,0.97097877]
[1727749411012,0.001644,63381.0,63380.0,0.77048877]
[1727749411258,0.001644,63381.0,63380.0,0.49353077]
[1727749412224,0.001644,63381.0,63380.0,0.46553077]
[1727749412453,0.001644,63381.0,63380.0,0.50253077]
[1727749412717,0.001644,63381.0,63380.0,0.51653077]
[1727749412950,0.001644,63381.0,63380.0,0.50253077]
[1727749413186,0.001644,63381.0,63380.0,0.51653077]
[1727749413674,0.001644,63381.0,63380.0,0.51853077]
[1727749418183,0.001644,63381.0,63380.0,0.50453077]
[1727749418394,0.001644,63381.0,63380.0,0.51853077]
[1727749419072,0.001644,63381.0,63380.0,0.50453077]
[1727749419301,0.001644,63381.0,63380.0,0.53546387]
[1727749420915,0.001644,63381.0,63380.0,0.51853077]
[1727749421126,0.001644,63381.0,63380.0,0.5354821]
[1727749423344,0.083344,63381.0,63380.0,0.5354821]
[1727749424238,0.083344,63381.0,63380.0,0.53544659]
[1727749426860,0.001644,63381.0,63380.0,0.53544659]
[1727749427738,0.001644,63381.0,63380.0,0.51853077]
[1727749427955,0.001644,63381.0,63380.0,0.53545303]
[1727749429040,0.001644,63381.0,63380.0,0.55771629]
[1727749433690,0.098044,63387.0,63380.0,0.55771629]
[1727749433691,0.001644,63387.0,63386.0,0.005]
[1727749433946,0.001644,63387.0,63386.0,0.51933722]
[1727749434185,1e-06,63387.0,63386.0,0.58274449]
[1727749434396,1e-06,63387.0,63386.0,0.68024449]
[1727749434643,1e-06,63387.0,63386.0,0.72744046]
[1727749434887,1e-06,63387.0,63386.0,0.68024449]
[1727749435148,1e-06,63387.0,63386.0,0.69624449]
[1727749435639,1e-06,63387.0,63386.0,0.95192679]
[1727749435914,1e-06,63387.0,63386.0,0.93792679]
[1727749436143,1e-06,63387.0,63386.0,0.95192679]
[1727749436619,1e-06,63387.0,63386.0,0.95860252]
[1727749436862,1e-06,63387.0,63386.0,0.95330331]
[1727749437087,1e-06,63387.0,63386.0,0.99015088]
[1727749437549,1e-06,63387.0,63386.0,0.99974887]
[1727749437801,1e-06,63387.0,63386.0,1.04102774]
[1727749438042,1e-06,63387.0,63386.0,1.05502774]
[1727749438535,1e-06,63387.0,63386.0,0.89503781]
[1727749438766,1e-06,63387.0,63386.0,0.9380471]
[1727749439014,1e-06,63387.0,63386.0,0.9240471]
[1727749439252,1e-06,63387.0,63386.0,0.9100471]
[1727749439494,1e-06,63387.0,63386.0,0.85499243]
[1727749439736,1e-06,63387.0,63386.0,0.86899243]
[1727749440461,1e-06,63387.0,63386.0,0.90588344]
[1727749440961,0.001644,63394.0,63390.0,0.01013834]
[1727749441196,0.001644,63394.0,63390.0,0.8548742]
[1727749441457,0.001644,63394.0,63390.0,1.56625381]
[1727749441706,0.001644,63394.0,63390.0,1.57772392]
[1727749441966,0.001644,63394.0,63390.0,1.57759408]
[1727749442223,0.001644,63394.0,63390.0,1.51045227]
[1727749442481,0.001644,63394.0,63390.0,1.54633741]
[1727749442733,0.001644,63394.0,63390.0,1.39366898]
[1727749443442,0.001644,63394.0,63390.0,1.51187015]
[1727749443682,0.001644,63394.0,63390.0,1.23900852]
[1727749443913,0.001644,63394.0,63390.0,1.22517852]
[1727749444379,0.001644,63394.0,63390.0,1.20229095]
[1727749445011,0.001644,63394.0,63390.0,1.17504471]
[1727749445887,0.001644,63394.0,63390.0,0.97344771]
[1727749446101,0.001644,63394.0,63390.0,0.71776192]
[1727749446526,0.001644,63394.0,63390.0,0.67048803]
[1727749446768,0.001644,63394.0,63390.0,0.71776278]
[1727749447418,0.001644,63394.0,63390.0,0.85536104]
[1727749447631,0.001644,63394.0,63390.0,0.74140016]
[1727749448131,0.001644,63394.0,63390.0,0.67048803]
[1727749448345,0.001644,63394.0,63390.0,0.65345913]
[1727749448554,0.001644,63394.0,63390.0,0.6560987]
[1727749449438,0.001644,63394.0,63390.0,0.67036534]
[1727749451107,0.001644,63394.0,63390.0,0.74127747]
[1727749451343,0.001644,63394.0,63393.0,0.67251434]
[1727749451553,0.001644,63394.0,63393.0,0.94968265]
[1727749451764,0.001644,63394.0,63393.0,1.00839179]
[1727749451981,0.001644,63394.0,63393.0,1.02532472]
[1727749452191,0.001644,63394.0,63393.0,1.03958977]
[1727749453233,0.001644,63394.0,63393.0,1.05358977]
[1727749454550,0.001644,63394.0,63393.0,1.06758977]
[1727749454768,0.001644,63394.0,63393.0,1.06761086]
[1727749455007,0.001644,63394.0,63393.0,0.98913301]
[1727749455215,0.001644,63394.0,63393.0,1.02038923]
[1727749455897,0.001644,63394.0,63393.0,1.06260086]
[1727749456120,0.001644,63394.0,63393.0,1.0768809]
[1727749457892,0.001644,63394.0,63393.0,1.07693142]
[1727749458322,0.001646,63396.0,63395.0,0.32250934]
[1727749458323,1e-06,63396.0,63395.0,0.32250934]
[1727749458563,1e-06,63396.0,63395.0,2.82857823]
[1727749458786,1e-06,63396.0,63395.0,2.48541317]
[1727749459001,1e-06,63396.0,63395.0,2.39289349]
[1727749459639,1e-06,63396.0,63395.0,2.51095229]
[1727749459849,1e-06,63396.0,63395.0,2.52495229]
[1727749460330,1e-06,63396.0,63395.0,2.48403946]
[1727749460538,1e-06,63396.0,63395.0,2.5389497]
[1727749460745,1e-06,63396.0,63395.0,2.5249497]
[1727749460962,1e-06,63396.0,63395.0,2.52192553]
[1727749461184,1e-06,63396.0,63395.0,2.51060487]
[1727749461617,1e-06,63396.0,63395.0,2.52460487]
[1727749462038,1e-06,63396.0,63395.0,2.53888293]
[1727749462283,1e-06,63403.0,63402.0,0.67249134]
[1727749462494,1e-06,63403.0,63402.0,4.95049812]
[1727749462731,1e-06,63403.0,63402.0,4.92159977]
[1727749462945,0.001646,63412.0,63411.0,0.67246934]
[1727749463176,0.001646,63412.0,63411.0,1.00817115]
[1727749463393,0.00186166,63439.0,63411.0,1.00817115]
[1727749463394,1e-06,63414.0,63413.0,0.32246434]
[1727749463623,1e-06,63414.0,63413.0,1.02259909]
[1727749463842,1e-06,63414.0,63413.0,0.68633162]
[1727749464088,1e-06,63414.0,63413.0,0.67114513]
[1727749464720,1e-06,63414.0,63413.0,0.69576279]
[1727749464944,1e-06,63414.0,63413.0,0.68514513]
[1727749465160,1e-06,63414.0,63413.0,0.70000132]
[1727749465600,1e-06,63414.0,63413.0,0.74897193]
[1727749466256,1e-06,63414.0,63413.0,0.76297193]
[1727749466470,1e-06,63414.0,63413.0,0.74897193]
[1727749466936,1e-06,63414.0,63413.0,0.76297193]
[1727749467358,1e-06,63414.0,63413.0,0.77714771]
[1727749467579,1e-06,63414.0,63413.0,0.78572051]
[1727749468015,1e-06,63414.0,63413.0,0.79972051]
[1727749468236,1e-06,63414.0,63413.0,0.77237822]
[1727749470527,1e-06,63414.0,63413.0,0.75528929]
[1727749470985,1e-06,63414.0,63413.0,0.77225468]
[1727749471192,1e-06,63414.0,63413.0,1.13830868]
[1727749471402,1e-06,63414.0,63413.0,0.77225468]
[1727749473544,1e-06,63414.0,63413.0,0.75526025]
[1727749473751,1e-06,63414.0,63413.0,0.77226407]
[1727749474615,1e-06,63414.0,63413.0,0.88997407]
[1727749474832,1e-06,63414.0,63413.0,0.91718019]
[1727749475048,1e-06,63414.0,63413.0,0.89756828]
[1727749475265,1e-06,63414.0,63413.0,0.96406047]
[1727749475476,1e-06,63414.0,63413.0,0.94978008]
[1727749475713,1e-06,63414.0,63413.0,0.95004516]
[1727749476151,1e-06,63414.0,63413.0,0.94147683]
[1727749476797,1e-06,63414.0,63413.0,0.91133076]
[1727749477049,1e-06,63414.0,63413.0,0.95542135]
[1727749477267,1e-06,63414.0,63413.0,0.92715627]
[1727749477477,1e-06,63414.0,63413.0,0.97429569]